[Event "Titled Tuesday Blitz May 2 Early 2023"]
[White "Hnydiuk, Aleksander"]
[Black "Seo, Jung Min"]
[WhiteFideId "1109057"]
[BlackFideId "1734687"]
[WhiteElo "2374"]
[BlackElo "2468"]
[Result "1/2-1/2"]
[Round "05"]
[TimeControl "180+2"]
[Date "2023.05.02"]
[WhiteClock "0:00:11"]
[BlackClock "0:00:07"]

1. g3 {[%clk 0:03:00]}  e5 {[%clk 0:02:58]} 2. Bg2 {[%clk 0:03:00]}  d5 {[%clk 0:02:57]} 3. c4 {[%clk 0:02:59]}  d4 {[%clk 0:02:56]} 4. Nf3 {[%clk 0:02:38]}  Nc6 {[%clk 0:02:54]} 5. O-O {[%clk 0:02:37]}  a5 {[%clk 0:02:54]} 6. e3 {[%clk 0:02:36]}  d3 {[%clk 0:02:41]} 7. Nc3 {[%clk 0:02:35]}  Nf6 {[%clk 0:02:41]} 8. b3 {[%clk 0:02:31]}  Be7 {[%clk 0:02:31]} 9. Bb2 {[%clk 0:02:31]}  O-O {[%clk 0:02:31]} 10. Nd5 {[%clk 0:02:32]}  e4 {[%clk 0:02:26]} 11. Ng5 {[%clk 0:02:13]}  Nxd5 {[%clk 0:02:19]} 12. cxd5 {[%clk 0:02:14]}  Bxg5 {[%clk 0:02:18]} 13. dxc6 {[%clk 0:02:14]}  f5 {[%clk 0:02:16]} 14. f3 {[%clk 0:02:09]}  Re8 {[%clk 0:01:42]} 15. fxe4 {[%clk 0:02:08]}  fxe4 {[%clk 0:01:42]} 16. Qc1 {[%clk 0:01:57]}  Qd5 {[%clk 0:01:23]} 17. Qc3 {[%clk 0:01:52]}  Re7 {[%clk 0:01:23]} 18. cxb7 {[%clk 0:01:28]}  Bxb7 {[%clk 0:01:23]} 19. Bh3 {[%clk 0:01:27]}  Bc8 {[%clk 0:01:11]} 20. Bxc8 {[%clk 0:01:26]}  Rxc8 {[%clk 0:01:11]} 21. Rac1 {[%clk 0:01:26]}  c6 {[%clk 0:01:00]} 22. Qc5 {[%clk 0:01:22]}  Ree8 {[%clk 0:00:49]} 23. Rf5 {[%clk 0:01:17]}  Qxc5 {[%clk 0:00:44]} 24. Rfxc5 {[%clk 0:01:18]}  Be7 {[%clk 0:00:31]} 25. Rxc6 {[%clk 0:01:15]}  Rxc6 {[%clk 0:00:31]} 26. Rxc6 {[%clk 0:01:16]}  a4 {[%clk 0:00:30]} 27. Re6 {[%clk 0:01:05]}  Kf7 {[%clk 0:00:26]} 28. Rxe4 {[%clk 0:01:03]}  axb3 {[%clk 0:00:27]} 29. axb3 {[%clk 0:01:04]}  Rb8 {[%clk 0:00:27]} 30. b4 {[%clk 0:01:00]}  Bxb4 {[%clk 0:00:24]} 31. Rf4+ {[%clk 0:00:53]}  Ke6 {[%clk 0:00:23]} 32. Re4+ {[%clk 0:00:50]}  Kf7 {[%clk 0:00:20]} 33. Be5 {[%clk 0:00:37]}  Rb7 {[%clk 0:00:16]} 34. Rd4 {[%clk 0:00:31]}  Ke6 {[%clk 0:00:13]} 35. Bf4 {[%clk 0:00:23]}  Bxd2 {[%clk 0:00:13]} 36. Rxd3 {[%clk 0:00:23]}  Rb1+ {[%clk 0:00:13]} 37. Kg2 {[%clk 0:00:22]}  Bb4 {[%clk 0:00:13]} 38. g4 {[%clk 0:00:20]}  Be7 {[%clk 0:00:13]} 39. Kf3 {[%clk 0:00:19]}  Rb2 {[%clk 0:00:13]} 40. Rc3 {[%clk 0:00:17]}  g6 {[%clk 0:00:12]} 41. Rc6+ {[%clk 0:00:17]}  Kf7 {[%clk 0:00:12]} 42. Rc7 {[%clk 0:00:17]}  Ke6 {[%clk 0:00:12]} 43. Ra7 {[%clk 0:00:12]}  Rc2 {[%clk 0:00:13]} 44. Ra6+ {[%clk 0:00:12]}  Kf7 {[%clk 0:00:13]} 45. Bg3 {[%clk 0:00:12]}  h5 {[%clk 0:00:12]} 46. gxh5 {[%clk 0:00:11]}  gxh5 {[%clk 0:00:13]} 47. Rh6 {[%clk 0:00:10]}  h4 {[%clk 0:00:13]} 48. Bf4 {[%clk 0:00:09]}  Ra2 {[%clk 0:00:12]} 49. Kg4 {[%clk 0:00:08]}  Rg2+ {[%clk 0:00:11]} 50. Kf5 {[%clk 0:00:07]}  Rf2 {[%clk 0:00:09]} 51. Rh7+ {[%clk 0:00:07]}  Kf8 {[%clk 0:00:09]} 52. Ke6 {[%clk 0:00:06]}  Bb4 {[%clk 0:00:09]} 53. Rxh4 {[%clk 0:00:04]}  Kg7 {[%clk 0:00:09]} 54. Rg4+ {[%clk 0:00:04]}  Kf8 {[%clk 0:00:09]} 55. Kf5 {[%clk 0:00:01]}  Kf7 {[%clk 0:00:09]} 56. Ke4 {[%clk 0:00:01]}  Be7 {[%clk 0:00:08]} 57. Rg3 {[%clk 0:00:01]}  Rxh2 {[%clk 0:00:07]} 58. Rf3 {[%clk 0:00:01]}  Rh5 {[%clk 0:00:06]} 59. Be5+ {[%clk 0:00:01]}  Ke6 {[%clk 0:00:06]} 60. Bf4 {[%clk 0:00:02]}  Ra5 {[%clk 0:00:06]} 61. Kd3 {[%clk 0:00:02]}  Ra2 {[%clk 0:00:06]} 62. Ke4 {[%clk 0:00:02]}  Ra3 {[%clk 0:00:05]} 63. Bg3 {[%clk 0:00:01]}  Bf6 {[%clk 0:00:05]} 64. Bf4 {[%clk 0:00:01]}  Rb3 {[%clk 0:00:04]} 65. Rg3 {[%clk 0:00:01]}  Rb4+ {[%clk 0:00:05]} 66. Kf3 {[%clk 0:00:02]}  Kf5 {[%clk 0:00:05]} 67. Rg4 {[%clk 0:00:02]}  Ra4 {[%clk 0:00:04]} 68. Rg2 {[%clk 0:00:02]}  Ra1 {[%clk 0:00:04]} 69. Rc2 {[%clk 0:00:03]}  Rf1+ {[%clk 0:00:04]} 70. Ke2 {[%clk 0:00:03]}  Rb1 {[%clk 0:00:05]} 71. Rc5+ {[%clk 0:00:04]}  Ke6 {[%clk 0:00:05]} 72. Rc4 {[%clk 0:00:04]}  Kd5 {[%clk 0:00:05]} 73. Rc2 {[%clk 0:00:03]}  Rb2 {[%clk 0:00:04]} 74. Rxb2 {[%clk 0:00:03]}  Bxb2 {[%clk 0:00:04]} 75. Kd3 {[%clk 0:00:04]}  Bf6 {[%clk 0:00:05]} 76. e4+ {[%clk 0:00:05]}  Ke6 {[%clk 0:00:05]} 77. Be3 {[%clk 0:00:06]}  Be5 {[%clk 0:00:05]} 78. Ke2 {[%clk 0:00:06]}  Bd6 {[%clk 0:00:06]} 79. Kf3 {[%clk 0:00:07]}  Be5 {[%clk 0:00:06]} 80. Bf4 {[%clk 0:00:08]}  Bf6 {[%clk 0:00:07]} 81. Kg4 {[%clk 0:00:08]}  Bg7 {[%clk 0:00:07]} 82. Kf3 {[%clk 0:00:09]}  Bf6 {[%clk 0:00:07]} 83. Kg4 {[%clk 0:00:10]}  Bg7 {[%clk 0:00:08]} 84. Kf3 {[%clk 0:00:11]}  Bf6 {[%clk 0:00:07]} 1/2-1/2


[Site "https://www.chess.com"]

[Event "Titled Tuesday Blitz May 2 Early 2023"]
[White "Kozak, Antoni"]
[Black "Bochnicka, Vladimir"]
[WhiteFideId "21832030"]
[BlackFideId "14943450"]
[WhiteElo "2470"]
[BlackElo "2094"]
[Result "1-0"]
[Round "05"]
[TimeControl "180+2"]
[Date "2023.05.02"]
[WhiteClock "0:00:15"]
[BlackClock "0:00:05"]

1. e4 {[%clk 0:02:50]}  c5 {[%clk 0:03:00]} 2. Be2 {[%clk 0:02:50]}  Nc6 {[%clk 0:02:58]} 3. d3 {[%clk 0:02:44]}  g6 {[%clk 0:02:55]} 4. f4 {[%clk 0:02:44]}  Bg7 {[%clk 0:02:55]} 5. Nf3 {[%clk 0:02:44]}  e6 {[%clk 0:02:55]} 6. O-O {[%clk 0:02:43]}  Nge7 {[%clk 0:02:56]} 7. c3 {[%clk 0:02:44]}  O-O {[%clk 0:02:56]} 8. Be3 {[%clk 0:02:45]}  d6 {[%clk 0:02:53]} 9. d4 {[%clk 0:02:45]}  cxd4 {[%clk 0:02:51]} 10. cxd4 {[%clk 0:02:46]}  d5 {[%clk 0:02:52]} 11. e5 {[%clk 0:02:46]}  h5 {[%clk 0:02:41]} 12. Nc3 {[%clk 0:02:45]}  a6 {[%clk 0:02:40]} 13. Qd2 {[%clk 0:02:41]}  Nf5 {[%clk 0:02:36]} 14. Bf2 {[%clk 0:02:41]}  Bd7 {[%clk 0:02:28]} 15. h3 {[%clk 0:02:34]}  h4 {[%clk 0:01:54]} 16. Bd3 {[%clk 0:02:33]}  Ng3 {[%clk 0:01:28]} 17. Rfd1 {[%clk 0:02:13]}  Rc8 {[%clk 0:01:20]} 18. Qe1 {[%clk 0:02:06]}  Qb6 {[%clk 0:01:19]} 19. Nxh4 {[%clk 0:02:04]}  Nxd4 {[%clk 0:01:10]} 20. Bf1 {[%clk 0:00:43]}  Qxb2 {[%clk 0:00:35]} 21. Bxd4 {[%clk 0:00:40]}  Nh5 {[%clk 0:00:35]} 22. Nxd5 {[%clk 0:00:37]}  Qa3 {[%clk 0:00:33]} 23. Nf6+ {[%clk 0:00:35]}  Bxf6 {[%clk 0:00:32]} 24. exf6 {[%clk 0:00:36]}  Bc6 {[%clk 0:00:29]} 25. Be2 {[%clk 0:00:34]}  Nxf4 {[%clk 0:00:29]} 26. Qd2 {[%clk 0:00:29]}  Nxh3+ {[%clk 0:00:24]} 27. Kh2 {[%clk 0:00:27]}  g5 {[%clk 0:00:09]} 28. Be5 {[%clk 0:00:20]}  Rcd8 {[%clk 0:00:06]} 29. Qxd8 {[%clk 0:00:14]}  Rxd8 {[%clk 0:00:05]} 30. Rxd8+ {[%clk 0:00:15]}  Kh7 {[%clk 0:00:06]} 31. Bd3+ {[%clk 0:00:15]}  Kh6 {[%clk 0:00:05]} 32. Rh8# {[%clk 0:00:15]} 1-0


[Site "https://www.chess.com"]

[Event "Titled Tuesday Blitz May 2 Early 2023"]
[White "Karthik Rajaa"]
[Black "Rom, Jasper"]
[WhiteFideId "25035215"]
[BlackFideId "2023733"]
[WhiteElo "2215"]
[BlackElo "2233"]
[Result "1-0"]
[Round "05"]
[TimeControl "180+2"]
[Date "2023.05.02"]
[WhiteClock "0:00:57"]
[BlackClock "0:00:18"]

1. Nf3 {[%clk 0:03:00]}  d5 {[%clk 0:02:59]} 2. c4 {[%clk 0:03:00]}  e6 {[%clk 0:02:58]} 3. e3 {[%clk 0:03:00]}  c6 {[%clk 0:02:58]} 4. Nc3 {[%clk 0:03:00]}  Nf6 {[%clk 0:02:58]} 5. b3 {[%clk 0:03:01]}  Nbd7 {[%clk 0:02:58]} 6. Bb2 {[%clk 0:02:59]}  Bd6 {[%clk 0:02:58]} 7. Qc2 {[%clk 0:02:59]}  O-O {[%clk 0:02:58]} 8. Be2 {[%clk 0:02:59]}  a6 {[%clk 0:02:55]} 9. Rg1 {[%clk 0:02:52]}  e5 {[%clk 0:02:55]} 10. g4 {[%clk 0:02:50]}  e4 {[%clk 0:02:54]} 11. Nd4 {[%clk 0:02:50]}  Ne5 {[%clk 0:02:51]} 12. g5 {[%clk 0:02:41]}  Nfg4 {[%clk 0:02:44]} 13. h3 {[%clk 0:02:12]}  Nh2 {[%clk 0:02:43]} 14. O-O-O {[%clk 0:02:09]}  c5 {[%clk 0:02:34]} 15. Nxd5 {[%clk 0:02:04]}  cxd4 {[%clk 0:02:34]} 16. Qxe4 {[%clk 0:01:59]}  d3 {[%clk 0:02:09]} 17. Bxe5 {[%clk 0:00:58]}  Bxe5 {[%clk 0:01:25]} 18. Bxd3 {[%clk 0:00:58]}  g6 {[%clk 0:00:32]} 19. Qxe5 {[%clk 0:00:58]}  Nf3 {[%clk 0:00:18]} 20. Ne7+ {[%clk 0:00:57]} 1-0


[Site "https://www.chess.com"]

[Event "Titled Tuesday Blitz May 2 Early 2023"]
[White "Khromkin, Andrey"]
[Black "Gritsenko, Nikolai"]
[WhiteFideId "4154126"]
[BlackFideId "14112493"]
[WhiteElo "2191"]
[BlackElo "2389"]
[Result "0-1"]
[Round "05"]
[TimeControl "180+2"]
[Date "2023.05.02"]
[WhiteClock "0:00:03"]
[BlackClock "0:00:06"]

1. d4 {[%clk 0:03:00]}  g6 {[%clk 0:02:57]} 2. c4 {[%clk 0:03:00]}  Bg7 {[%clk 0:02:58]} 3. Nf3 {[%clk 0:03:00]}  c5 {[%clk 0:02:57]} 4. Nc3 {[%clk 0:02:55]}  cxd4 {[%clk 0:02:55]} 5. Nxd4 {[%clk 0:02:55]}  Nc6 {[%clk 0:02:55]} 6. e3 {[%clk 0:02:33]}  Nxd4 {[%clk 0:02:50]} 7. exd4 {[%clk 0:02:32]}  Nf6 {[%clk 0:02:50]} 8. g3 {[%clk 0:02:25]}  O-O {[%clk 0:02:16]} 9. Bg2 {[%clk 0:02:25]}  d5 {[%clk 0:02:13]} 10. cxd5 {[%clk 0:02:17]}  Bd7 {[%clk 0:01:49]} 11. O-O {[%clk 0:02:16]}  Ne8 {[%clk 0:01:49]} 12. Re1 {[%clk 0:02:15]}  Nd6 {[%clk 0:01:48]} 13. Bg5 {[%clk 0:02:14]}  Re8 {[%clk 0:01:47]} 14. Qd2 {[%clk 0:02:14]}  Rc8 {[%clk 0:01:39]} 15. h3 {[%clk 0:02:11]}  Nf5 {[%clk 0:01:23]} 16. Rad1 {[%clk 0:01:52]}  h6 {[%clk 0:01:21]} 17. Bf4 {[%clk 0:01:52]}  g5 {[%clk 0:01:14]} 18. Be3 {[%clk 0:01:18]}  Qb6 {[%clk 0:01:11]} 19. Kh2 {[%clk 0:01:03]}  Nd6 {[%clk 0:01:10]} 20. b3 {[%clk 0:00:57]}  Bf5 {[%clk 0:01:04]} 21. g4 {[%clk 0:00:54]}  Bg6 {[%clk 0:01:01]} 22. f4 {[%clk 0:00:52]}  gxf4 {[%clk 0:00:58]} 23. Bxf4 {[%clk 0:00:52]}  Qa5 {[%clk 0:00:55]} 24. Na4 {[%clk 0:00:44]}  Qxd2 {[%clk 0:00:49]} 25. Rxd2 {[%clk 0:00:45]}  b6 {[%clk 0:00:41]} 26. Rde2 {[%clk 0:00:34]}  Kf8 {[%clk 0:00:33]} 27. Nb2 {[%clk 0:00:19]}  Nb5 {[%clk 0:00:27]} 28. Be5 {[%clk 0:00:11]}  Nxd4 {[%clk 0:00:21]} 29. Bxd4 {[%clk 0:00:11]}  Bxd4 {[%clk 0:00:21]} 30. Nc4 {[%clk 0:00:12]}  b5 {[%clk 0:00:15]} 31. Ne5 {[%clk 0:00:12]}  Bxe5+ {[%clk 0:00:13]} 32. Rxe5 {[%clk 0:00:13]}  Rc2 {[%clk 0:00:12]} 33. R1e2 {[%clk 0:00:12]}  Rxe2 {[%clk 0:00:11]} 34. Rxe2 {[%clk 0:00:13]}  Rc8 {[%clk 0:00:12]} 35. h4 {[%clk 0:00:13]}  b4 {[%clk 0:00:12]} 36. h5 {[%clk 0:00:13]}  Rc2 {[%clk 0:00:11]} 37. Bf3 {[%clk 0:00:09]}  Rxe2+ {[%clk 0:00:11]} 38. Bxe2 {[%clk 0:00:09]}  Bb1 {[%clk 0:00:11]} 39. Bd1 {[%clk 0:00:08]}  Bxa2 {[%clk 0:00:11]} 40. Bc2 {[%clk 0:00:09]}  a5 {[%clk 0:00:11]} 41. Kg3 {[%clk 0:00:09]}  a4 {[%clk 0:00:11]} 42. bxa4 {[%clk 0:00:09]}  b3 {[%clk 0:00:11]} 43. Bd3 {[%clk 0:00:09]}  b2 {[%clk 0:00:11]} 44. a5 {[%clk 0:00:09]}  Bxd5 {[%clk 0:00:10]} 45. Bb1 {[%clk 0:00:07]}  Ke8 {[%clk 0:00:10]} 46. a6 {[%clk 0:00:08]}  Kd7 {[%clk 0:00:10]} 47. Kf4 {[%clk 0:00:08]}  f6 {[%clk 0:00:09]} 48. Ke3 {[%clk 0:00:09]}  e5 {[%clk 0:00:09]} 49. Kd2 {[%clk 0:00:08]}  Kc7 {[%clk 0:00:09]} 50. Kc3 {[%clk 0:00:09]}  Be6 {[%clk 0:00:09]} 51. Kxb2 {[%clk 0:00:06]}  Bxg4 {[%clk 0:00:08]} 52. Bd3 {[%clk 0:00:06]}  Bxh5 {[%clk 0:00:06]} 53. Kc3 {[%clk 0:00:06]}  Kb6 {[%clk 0:00:06]} 54. Kb4 {[%clk 0:00:05]}  Bf7 {[%clk 0:00:06]} 55. Be2 {[%clk 0:00:03]}  h5 {[%clk 0:00:06]} 56. Kc3 {[%clk 0:00:02]}  h4 {[%clk 0:00:06]} 57. Kd2 {[%clk 0:00:03]}  Bd5 {[%clk 0:00:06]} 58. Ke1 {[%clk 0:00:02]}  h3 {[%clk 0:00:06]} 59. Kf2 {[%clk 0:00:03]}  h2 {[%clk 0:00:06]} 0-1


[Site "https://www.chess.com"]

[Event "Titled Tuesday Blitz May 2 Early 2023"]
[White "Averjanov, Alexey"]
[Black "Todorovic, Bojan"]
[WhiteFideId "14109867"]
[BlackFideId "917087"]
[WhiteElo "2399"]
[BlackElo "2266"]
[Result "1-0"]
[Round "05"]
[TimeControl "180+2"]
[Date "2023.05.02"]
[WhiteClock "0:00:46"]
[BlackClock "0:00:01"]

1. d4 {[%clk 0:03:00]}  Nf6 {[%clk 0:02:58]} 2. c4 {[%clk 0:03:01]}  g6 {[%clk 0:02:58]} 3. Nc3 {[%clk 0:03:01]}  Bg7 {[%clk 0:02:58]} 4. e4 {[%clk 0:03:01]}  d6 {[%clk 0:02:57]} 5. Be2 {[%clk 0:03:02]}  O-O {[%clk 0:02:57]} 6. Nf3 {[%clk 0:03:02]}  e5 {[%clk 0:02:56]} 7. O-O {[%clk 0:03:02]}  Nc6 {[%clk 0:02:55]} 8. d5 {[%clk 0:03:02]}  Ne7 {[%clk 0:02:55]} 9. Ne1 {[%clk 0:03:01]}  Nd7 {[%clk 0:02:49]} 10. Be3 {[%clk 0:03:01]}  f5 {[%clk 0:02:48]} 11. f3 {[%clk 0:03:02]}  f4 {[%clk 0:02:47]} 12. Bf2 {[%clk 0:03:02]}  g5 {[%clk 0:02:47]} 13. a4 {[%clk 0:03:02]}  a5 {[%clk 0:02:44]} 14. Nd3 {[%clk 0:03:03]}  c5 {[%clk 0:02:17]} 15. dxc6 {[%clk 0:02:55]}  bxc6 {[%clk 0:02:16]} 16. b4 {[%clk 0:02:45]}  axb4 {[%clk 0:02:11]} 17. Nxb4 {[%clk 0:02:46]}  Nc5 {[%clk 0:02:04]} 18. Bxc5 {[%clk 0:02:38]}  dxc5 {[%clk 0:02:03]} 19. Qxd8 {[%clk 0:02:39]}  Rxd8 {[%clk 0:02:02]} 20. Nd3 {[%clk 0:02:40]}  Bf8 {[%clk 0:01:50]} 21. Nxc5 {[%clk 0:02:40]}  Nf5 {[%clk 0:01:46]} 22. Nb3 {[%clk 0:02:27]}  Ne3 {[%clk 0:01:43]} 23. Rfc1 {[%clk 0:02:22]}  Be6 {[%clk 0:01:38]} 24. Nd1 {[%clk 0:02:16]}  Nxd1 {[%clk 0:01:25]} 25. Rxd1 {[%clk 0:02:16]}  Rxd1+ {[%clk 0:01:24]} 26. Rxd1 {[%clk 0:02:17]}  Rxa4 {[%clk 0:01:23]} 27. Kf1 {[%clk 0:01:50]}  Bxc4 {[%clk 0:01:14]} 28. Bxc4+ {[%clk 0:01:49]}  Rxc4 {[%clk 0:01:14]} 29. Rc1 {[%clk 0:01:50]}  Rxc1+ {[%clk 0:01:12]} 30. Nxc1 {[%clk 0:01:51]}  Kf7 {[%clk 0:01:06]} 31. Ke2 {[%clk 0:01:51]}  Ke6 {[%clk 0:01:04]} 32. Kd3 {[%clk 0:01:51]}  Kd6 {[%clk 0:00:55]} 33. Kc4 {[%clk 0:01:51]}  h5 {[%clk 0:00:52]} 34. h3 {[%clk 0:01:51]}  Be7 {[%clk 0:00:50]} 35. Nd3 {[%clk 0:01:45]}  Bd8 {[%clk 0:00:47]} 36. Nc5 {[%clk 0:01:41]}  Bb6 {[%clk 0:00:43]} 37. Nd3 {[%clk 0:01:40]}  Bd4 {[%clk 0:00:42]} 38. Nb4 {[%clk 0:01:39]}  Kc7 {[%clk 0:00:41]} 39. Nc2 {[%clk 0:01:37]}  Bf2 {[%clk 0:00:39]} 40. Nb4 {[%clk 0:01:32]}  Kd6 {[%clk 0:00:38]} 41. Nd3 {[%clk 0:01:30]}  Be3 {[%clk 0:00:37]} 42. Kb4 {[%clk 0:01:26]}  Bf2 {[%clk 0:00:36]} 43. Nb2 {[%clk 0:01:21]}  Be3 {[%clk 0:00:34]} 44. Nc4+ {[%clk 0:01:21]}  Ke6 {[%clk 0:00:33]} 45. Ka5 {[%clk 0:01:15]}  Bd4 {[%clk 0:00:32]} 46. Ka6 {[%clk 0:01:11]}  Kd7 {[%clk 0:00:31]} 47. Kb7 {[%clk 0:01:07]}  c5 {[%clk 0:00:20]} 48. Kb6 {[%clk 0:01:04]}  Ke6 {[%clk 0:00:19]} 49. Kc6 {[%clk 0:01:03]}  g4 {[%clk 0:00:19]} 50. hxg4 {[%clk 0:00:56]}  hxg4 {[%clk 0:00:18]} 51. fxg4 {[%clk 0:00:50]}  Kf6 {[%clk 0:00:18]} 52. Kd5 {[%clk 0:00:48]}  Kg5 {[%clk 0:00:18]} 53. Nxe5 {[%clk 0:00:46]}  Bxe5 {[%clk 0:00:17]} 54. Kxe5 {[%clk 0:00:47]}  Kxg4 {[%clk 0:00:17]} 55. Kd5 {[%clk 0:00:46]}  Kg3 {[%clk 0:00:17]} 56. e5 {[%clk 0:00:47]}  Kxg2 {[%clk 0:00:17]} 57. e6 {[%clk 0:00:47]}  f3 {[%clk 0:00:13]} 58. e7 {[%clk 0:00:47]}  f2 {[%clk 0:00:11]} 59. e8=Q {[%clk 0:00:47]}  f1=Q {[%clk 0:00:02]} 60. Qg6+ {[%clk 0:00:47]}  Kf2 {[%clk 0:00:01]} 61. Qc2+ {[%clk 0:00:46]} 1-0


[Site "https://www.chess.com"]

[Event "Titled Tuesday Blitz May 2 Early 2023"]
[White "Nikologorskiy, Konstantin"]
[Black "Terry, Renato"]
[WhiteFideId "24111708"]
[BlackFideId "3803457"]
[WhiteElo "2293"]
[BlackElo "2575"]
[Result "0-1"]
[Round "05"]
[TimeControl "180+2"]
[Date "2023.05.02"]
[WhiteClock "0:00:02"]
[BlackClock "0:00:07"]

1. d4 {[%clk 0:02:57]}  e6 {[%clk 0:03:00]} 2. c4 {[%clk 0:02:57]}  Bb4+ {[%clk 0:03:00]} 3. Bd2 {[%clk 0:02:57]}  Qe7 {[%clk 0:03:00]} 4. Nf3 {[%clk 0:02:57]}  Nf6 {[%clk 0:03:00]} 5. g3 {[%clk 0:02:55]}  O-O {[%clk 0:03:00]} 6. Nc3 {[%clk 0:02:54]}  d6 {[%clk 0:02:59]} 7. Bg2 {[%clk 0:02:55]}  e5 {[%clk 0:03:00]} 8. Nd5 {[%clk 0:02:52]}  Nxd5 {[%clk 0:03:00]} 9. cxd5 {[%clk 0:02:53]}  Bxd2+ {[%clk 0:02:58]} 10. Nxd2 {[%clk 0:02:44]}  f5 {[%clk 0:02:35]} 11. dxe5 {[%clk 0:02:39]}  dxe5 {[%clk 0:02:28]} 12. O-O {[%clk 0:02:40]}  e4 {[%clk 0:02:28]} 13. Nc4 {[%clk 0:02:39]}  Rd8 {[%clk 0:02:25]} 14. Qb3 {[%clk 0:02:34]}  Na6 {[%clk 0:02:22]} 15. Ne3 {[%clk 0:02:28]}  Qd6 {[%clk 0:01:50]} 16. Rac1 {[%clk 0:02:25]}  Qb6 {[%clk 0:01:42]} 17. Qc3 {[%clk 0:01:55]}  Bd7 {[%clk 0:01:41]} 18. a3 {[%clk 0:01:52]}  Rac8 {[%clk 0:01:39]} 19. b4 {[%clk 0:01:51]}  c5 {[%clk 0:01:33]} 20. dxc6 {[%clk 0:01:51]}  Rxc6 {[%clk 0:01:31]} 21. Qe5 {[%clk 0:01:50]}  Qc7 {[%clk 0:01:27]} 22. Qb2 {[%clk 0:01:19]}  Rc8 {[%clk 0:00:53]} 23. Rcd1 {[%clk 0:01:17]}  Be6 {[%clk 0:00:52]} 24. h4 {[%clk 0:01:16]}  Nb8 {[%clk 0:00:48]} 25. h5 {[%clk 0:01:11]}  Nd7 {[%clk 0:00:48]} 26. h6 {[%clk 0:01:07]}  Qe5 {[%clk 0:00:48]} 27. Qd2 {[%clk 0:00:58]}  gxh6 {[%clk 0:00:46]} 28. f3 {[%clk 0:00:44]}  Qxg3 {[%clk 0:00:42]} 29. fxe4 {[%clk 0:00:40]}  fxe4 {[%clk 0:00:43]} 30. Nd5 {[%clk 0:00:22]}  Bh3 {[%clk 0:00:31]} 31. Rf2 {[%clk 0:00:14]}  Re8 {[%clk 0:00:26]} 32. Ne3 {[%clk 0:00:06]}  Nf6 {[%clk 0:00:17]} 33. Rdf1 {[%clk 0:00:03]}  Rd6 {[%clk 0:00:08]} 34. Qa2+ {[%clk 0:00:01]}  Be6 {[%clk 0:00:08]} 35. Nd1 {[%clk 0:00:01]}  Bxa2 {[%clk 0:00:07]} 36. Rxf6 {[%clk 0:00:01]}  Rxf6 {[%clk 0:00:07]} 37. Rxf6 {[%clk 0:00:01]}  Rd8 {[%clk 0:00:08]} 38. Ne3 {[%clk 0:00:02]}  Qxe3+ {[%clk 0:00:08]} 39. Kh2 {[%clk 0:00:02]}  Qd4 {[%clk 0:00:07]} 0-1


[Site "https://www.chess.com"]

[Event "Titled Tuesday Blitz May 2 Early 2023"]
[White "Swiercz, Dariusz"]
[Black "Souleidis, Georgios"]
[WhiteFideId "1126881"]
[BlackFideId "4206827"]
[WhiteElo "2620"]
[BlackElo "2401"]
[Result "1-0"]
[Round "05"]
[TimeControl "180+2"]
[Date "2023.05.02"]
[WhiteClock "0:00:15"]
[BlackClock "0:00:04"]

1. e4 {[%clk 0:03:00]}  e5 {[%clk 0:02:59]} 2. Nf3 {[%clk 0:03:00]}  d6 {[%clk 0:03:00]} 3. Bc4 {[%clk 0:03:00]}  Nf6 {[%clk 0:02:57]} 4. Nc3 {[%clk 0:03:00]}  Be7 {[%clk 0:02:57]} 5. O-O {[%clk 0:02:59]}  O-O {[%clk 0:02:57]} 6. a4 {[%clk 0:02:59]}  Nc6 {[%clk 0:02:56]} 7. d3 {[%clk 0:02:57]}  Na5 {[%clk 0:02:46]} 8. Ba2 {[%clk 0:02:57]}  c5 {[%clk 0:02:47]} 9. Bg5 {[%clk 0:02:51]}  Be6 {[%clk 0:02:40]} 10. Bxf6 {[%clk 0:02:44]}  Bxf6 {[%clk 0:02:40]} 11. Nd5 {[%clk 0:02:42]}  Nc6 {[%clk 0:02:39]} 12. c3 {[%clk 0:02:41]}  g6 {[%clk 0:02:33]} 13. h3 {[%clk 0:02:34]}  Bg7 {[%clk 0:02:33]} 14. Qd2 {[%clk 0:02:32]}  Ne7 {[%clk 0:02:22]} 15. Nxe7+ {[%clk 0:02:15]}  Qxe7 {[%clk 0:02:22]} 16. Bc4 {[%clk 0:02:16]}  Rad8 {[%clk 0:02:15]} 17. Rfe1 {[%clk 0:02:11]}  a6 {[%clk 0:02:15]} 18. Qg5 {[%clk 0:01:56]}  f6 {[%clk 0:02:03]} 19. Qe3 {[%clk 0:01:49]}  Rfe8 {[%clk 0:01:58]} 20. Bxe6+ {[%clk 0:01:43]}  Qxe6 {[%clk 0:01:58]} 21. d4 {[%clk 0:01:43]}  cxd4 {[%clk 0:01:50]} 22. cxd4 {[%clk 0:01:44]}  Rc8 {[%clk 0:01:49]} 23. Rac1 {[%clk 0:01:02]}  h5 {[%clk 0:01:48]} 24. d5 {[%clk 0:00:41]}  Qd7 {[%clk 0:01:48]} 25. Qb3 {[%clk 0:00:28]}  Bh6 {[%clk 0:01:44]} 26. Rc3 {[%clk 0:00:28]}  Rc7 {[%clk 0:01:34]} 27. Re2 {[%clk 0:00:28]}  Rxc3 {[%clk 0:01:25]} 28. bxc3 {[%clk 0:00:28]}  Rc8 {[%clk 0:01:24]} 29. Rb2 {[%clk 0:00:22]}  Rc7 {[%clk 0:01:23]} 30. c4 {[%clk 0:00:21]}  Qc8 {[%clk 0:01:20]} 31. Rc2 {[%clk 0:00:19]}  Rc5 {[%clk 0:01:05]} 32. Ne1 {[%clk 0:00:18]}  b5 {[%clk 0:01:03]} 33. cxb5 {[%clk 0:00:18]}  axb5 {[%clk 0:01:00]} 34. axb5 {[%clk 0:00:17]}  Rxc2 {[%clk 0:00:10]} 35. Nxc2 {[%clk 0:00:18]}  Bd2 {[%clk 0:00:04]} 36. b6 {[%clk 0:00:16]}  Qb7 {[%clk 0:00:04]} 37. Qb5 {[%clk 0:00:15]} 1-0


[Site "https://www.chess.com"]

[Event "Titled Tuesday Blitz May 2 Early 2023"]
[White "Martinez Reyes, Pedro Ramon"]
[Black "Ibarra Jerez, Jose Carlos"]
[WhiteFideId "3901807"]
[BlackFideId "2226332"]
[WhiteElo "2340"]
[BlackElo "2638"]
[Result "0-1"]
[Round "05"]
[TimeControl "180+2"]
[Date "2023.05.02"]
[WhiteClock "0:00:02"]
[BlackClock "0:00:54"]

1. d4 {[%clk 0:03:00]}  Nf6 {[%clk 0:02:59]} 2. c4 {[%clk 0:03:00]}  d6 {[%clk 0:02:57]} 3. Nf3 {[%clk 0:02:57]}  g6 {[%clk 0:02:57]} 4. Nc3 {[%clk 0:02:56]}  Bf5 {[%clk 0:02:57]} 5. Nh4 {[%clk 0:02:54]}  Bd7 {[%clk 0:02:57]} 6. e4 {[%clk 0:02:50]}  e5 {[%clk 0:02:57]} 7. Nf3 {[%clk 0:02:48]}  exd4 {[%clk 0:02:57]} 8. Nxd4 {[%clk 0:02:47]}  Bg7 {[%clk 0:02:58]} 9. Be2 {[%clk 0:02:46]}  O-O {[%clk 0:02:59]} 10. O-O {[%clk 0:02:46]}  Re8 {[%clk 0:02:59]} 11. f3 {[%clk 0:02:46]}  Nc6 {[%clk 0:03:00]} 12. Nc2 {[%clk 0:02:42]}  Nh5 {[%clk 0:02:52]} 13. Nd5 {[%clk 0:02:31]}  f5 {[%clk 0:02:45]} 14. exf5 {[%clk 0:02:23]}  Bxf5 {[%clk 0:02:45]} 15. Bd3 {[%clk 0:02:15]}  Bxd3 {[%clk 0:02:45]} 16. Qxd3 {[%clk 0:02:15]}  Ne5 {[%clk 0:02:45]} 17. Qb3 {[%clk 0:02:15]}  c6 {[%clk 0:02:44]} 18. Nf4 {[%clk 0:02:07]}  Nxf4 {[%clk 0:02:37]} 19. Bxf4 {[%clk 0:02:08]}  Qb6+ {[%clk 0:02:36]} 20. Kh1 {[%clk 0:02:02]}  Qxb3 {[%clk 0:02:29]} 21. axb3 {[%clk 0:02:03]}  Nd3 {[%clk 0:02:30]} 22. Bxd6 {[%clk 0:01:54]}  Re2 {[%clk 0:02:29]} 23. Ne1 {[%clk 0:01:27]}  Nf2+ {[%clk 0:02:27]} 24. Kg1 {[%clk 0:01:01]}  Bxb2 {[%clk 0:02:12]} 25. Ra2 {[%clk 0:00:50]}  Rae8 {[%clk 0:02:11]} 26. Bc5 {[%clk 0:00:41]}  Rxe1 {[%clk 0:01:32]} 27. Bxf2 {[%clk 0:00:38]}  R1e2 {[%clk 0:01:19]} 28. Rb1 {[%clk 0:00:14]}  Rd8 {[%clk 0:00:56]} 29. Be1 {[%clk 0:00:02]}  Bd4+ {[%clk 0:00:54]} 0-1


[Site "https://www.chess.com"]